bitfinex-derivatives/quotes_BNBF0:USTF0_20250908
["timestamp","ask_amount","ask_price","bid_price","bid_amount"]
[1757356917217,2.5554157,877.7,875.45,1.01884463]
[1757356918020,2.5554157,877.7,875.47,1.01884463]
[1757356918220,2.5554157,877.61,875.48,1.01884463]
[1757356919118,2.5554157,877.6,875.49,1.01884463]
[1757356919818,2.5554157,877.59,875.49,1.01884463]
[1757356920223,2.5554157,877.58,875.49,1.01884463]
[1757356920522,2.5554157,877.58,875.48,1.01884463]
[1757356920818,2.5554157,877.57,875.48,1.01884463]
[1757356921318,2.5554157,877.57,875.29,1.5317]
[1757356921319,2.5554157,877.56,875.49,1.01884463]
[1757356921820,2.5554157,877.57,875.49,1.01884463]
[1757356922324,2.5554157,877.56,875.51,1.01884463]
[1757356922820,2.5554157,877.55,875.51,1.01884463]
[1757356923324,2.5554157,877.54,875.52,1.01884463]
[1757356924223,2.5554157,877.54,875.54,1.01884463]
[1757356924428,2.5554157,877.53,875.54,1.01884463]
[1757356924824,2.5554157,877.52,875.54,1.01884463]
[1757356925229,2.5554157,877.52,875.55,1.01884463]
[1757356925730,2.5554157,877.52,875.36,1.5317]
[1757356925731,2.5554157,877.52,875.51,1.01884463]
[1757356926030,2.5554157,877.48,875.51,1.01884463]
[1757356926626,2.5554157,877.31,875.36,1.01884463]
[1757356927027,2.5554157,877.15,875.4,1.01884463]
[1757356927327,2.5554157,877.15,875.41,1.01884463]
[1757356927525,2.5554157,877.14,875.41,1.01884463]
[1757356928529,2.5554157,877.12,875.41,1.01884463]
[1757356929328,2.5554157,877.12,875.42,1.01884463]
[1757356930133,2.5554157,877.11,875.42,1.01884463]
[1757356931529,2.5554157,877.11,875.43,1.01884463]
[1757356931734,2.5554157,877.09,875.43,1.01884463]
[1757356933335,2.5554157,877.07,875.43,1.01884463]
[1757356933635,2.5554157,877.07,875.44,1.01884463]
[1757356933835,2.5554157,877.06,875.44,1.01884463]
[1757356934536,1.5349149,876.42,875.44,1.01884463]
[1757356934835,2.5554157,877.06,875.44,1.01884463]
[1757356935035,2.5554157,877.06,875.48,1.01884463]
[1757356935334,2.5554157,877.1,875.48,1.01884463]
[1757356936035,2.5554157,877.1,875.43,1.01884463]
[1757356936635,2.5554157,877.05,875.52,1.01884463]
[1757356936934,2.5554157,877.13,875.52,1.01884463]
[1757356937633,2.5554157,877.14,875.52,1.01884463]
[1757356937934,2.5554157,877.13,875.52,1.01884463]
[1757356938238,2.5554157,877.13,875.53,1.01884463]
[1757356938431,2.5554157,877.1,875.53,1.01884463]
[1757356938937,2.5554157,877.1,875.37,1.5317]
[1757356938938,2.5554157,877.11,875.52,1.01884463]
[1757356939436,2.5554157,877.11,875.53,1.01884463]
[1757356939930,2.5554157,877.1,875.53,1.01884463]
[1757356940936,2.5554157,877.1,875.52,1.01884463]
[1757356941137,2.5554157,877.11,875.53,1.01884463]
[1757356941635,2.5554157,877.11,875.37,1.5317]
[1757356941636,2.5554157,877.17,875.51,1.01884463]
[1757356944740,2.5554157,877.18,875.51,1.01884463]
[1757356946239,2.5554157,877.17,875.51,1.01884463]
[1757356946537,2.5554157,877.17,875.49,1.01884463]
[1757356946836,2.5554157,877.15,875.49,1.01884463]
[1757356947240,2.5554157,877.15,875.48,1.01884463]
[1757356947536,2.5554157,877.18,875.48,1.01884463]
[1757356947940,1.24629074,877.18,875.48,1.01884463]
[1757356948440,1.24629074,877.18,875.52,1.01884463]
[1757356948942,3.572581,877.58,875.51,1.01884463]
[1757356949539,3.572581,877.58,875.46,1.01884463]
[1757356949937,3.572581,877.53,875.46,1.01884463]
[1757356950942,3.572581,877.54,875.46,1.01884463]
[1757356951343,3.572581,877.54,875.47,1.01884463]
[1757356951944,3.572581,877.48,875.47,1.01884463]
[1757356953044,3.572581,877.49,875.47,1.01884463]
[1757356954748,1.53519093,876.48,875.47,1.01884463]
[1757356954945,0.60316762,876.48,875.47,1.01884463]
[1757356955245,3.572581,877.49,875.47,1.01884463]
[1757356955645,3.572581,877.49,875.5,1.01884463]
[1757356956249,3.572581,877.51,875.5,1.01884463]
[1757356956644,3.572581,877.51,875.48,1.01884463]
[1757356956847,3.572581,877.51,875.47,1.01884463]
[1757356957147,2.55869824,877.18,875.47,1.01884463]
[1757356958646,2.55869824,877.17,875.47,1.01884463]
[1757356958848,2.55869824,877.17,875.48,1.01884463]
[1757356959049,2.55869824,877.17,875.47,1.01884463]
[1757356959345,2.55869824,877.16,875.47,1.01884463]
[1757356959751,2.55869824,877.16,875.48,1.01884463]
[1757356959950,2.55869824,877.16,875.47,1.01884463]
[1757356960147,2.55869824,877.15,875.47,1.01884463]
[1757356961148,2.55869824,877.14,875.47,1.01884463]
[1757356961558,2.55869824,877.14,875.48,1.01884463]
[1757356961873,2.55869824,877.13,875.48,1.01884463]
[1757356962057,2.55869824,877.13,875.47,1.01884463]
[1757356962459,2.55869824,877.13,875.48,1.01884463]
[1757356962857,2.55869824,877.12,875.48,1.01884463]
[1757356963861,2.55869824,877.11,875.48,1.01884463]
[1757356964858,2.55869824,877.12,875.48,1.01884463]
[1757356965462,2.55869824,877.11,875.5,1.01884463]
[1757356965959,2.55869824,877.06,875.5,1.01884463]
[1757356966462,2.55869824,877.05,875.5,1.01884463]
[1757356966764,1.41324058,877.05,875.61,1.01884463]
[1757356967063,3.572581,877.47,875.65,1.01884463]
[1757356967862,3.572581,877.49,875.65,1.01884463]
[1757356968963,3.572581,877.49,875.44,1.5317]
[1757356969160,0.61412226,877.48,875.45,1.5317]
[1757356969360,0.61412226,877.47,875.45,1.5317]
[1757356969658,0.61412226,877.46,875.45,1.5317]
[1757356969859,3.572581,877.43,875.45,1.5317]
[1757356970062,0.61412226,877.42,875.41,1.5317]
[1757356970259,0.61412226,877.41,875.41,1.5317]
[1757356970459,0.61412226,877.4,875.41,1.5317]
[1757356970663,0.61412226,877.39,875.41,1.5317]
[1757356970860,0.61412226,877.38,875.4,1.5317]
[1757356971163,0.61412226,877.37,875.4,1.5317]
[1757356971363,0.61412226,877.36,875.4,1.5317]
[1757356971660,0.61412226,877.35,875.33,1.5317]
[1757356971858,0.61412226,877.34,875.33,1.5317]
[1757356972062,0.61412226,877.33,875.33,1.5317]
[1757356972260,0.61412226,877.32,875.33,1.5317]
[1757356972460,0.61412226,877.31,875.33,1.5317]
[1757356972664,0.61412226,877.3,875.33,1.5317]
[1757356972864,0.61412226,877.29,875.33,1.5317]
[1757356973062,0.61412226,877.28,875.29,1.5317]
[1757356973362,0.61412226,877.27,875.28,1.5317]
[1757356973565,0.61412226,877.26,875.28,1.5317]
[1757356973865,0.61412226,877.25,875.28,1.5317]
[1757356974065,0.61412226,877.24,875.27,1.5317]
[1757356974365,0.61412226,877.23,875.27,1.5317]
[1757356974660,0.61412226,877.22,875.27,1.5317]
[1757356974860,1.5355669,876.66,875.27,1.5317]
[1757356975061,1.41571547,876.66,875.27,1.5317]
[1757356975260,3.572581,877.87,875.49,1.02238849]
[1757356975662,2.55921025,877.5,875.49,1.02238849]
[1757356976562,2.55921025,877.5,875.38,1.02238849]
[1757356976769,2.55921025,877.39,875.38,1.02238849]
[1757356977068,2.55921025,877.39,875.37,1.02238849]
[1757356977263,2.55921025,877.45,875.37,1.02238849]
[1757356977668,2.55921025,877.48,875.36,1.02238849]
[1757356978166,2.55921025,877.48,875.15,1.5317]
[1757356978167,2.55921025,877.48,875.35,1.02238849]
[1757356978369,2.55921025,877.51,875.35,1.02238849]
[1757356978565,2.55921025,877.51,875.13,1.5317]
[1757356978566,2.55921025,877.51,875.34,1.02238849]
[1757356978770,2.55921025,877.56,875.34,1.02238849]
[1757356979070,2.55921025,877.56,875.35,1.02238849]
[1757356979268,2.55921025,877.51,875.35,1.02238849]
[1757356979475,2.55921025,877.51,875.33,1.02238849]
[1757356979774,2.55921025,877.51,875.34,1.02238849]
[1757356979968,2.55921025,877.56,875.33,1.02238849]
[1757356980470,2.55921025,877.58,875.32,1.02238849]
[1757356980871,2.55921025,877.61,875.32,1.02238849]
[1757356981174,2.55921025,877.61,875.31,1.02238849]
[1757356981371,2.55921025,877.68,875.3,1.02238849]
[1757356981872,2.55921025,877.71,875.3,1.02238849]
[1757356982479,2.55921025,877.74,875.28,1.02238849]
[1757356982979,2.55921025,877.73,875.28,1.02238849]
[1757356985377,2.55921025,877.73,875.29,1.02238849]
[1757356985576,2.55921025,877.69,875.27,1.02238849]
[1757356986080,2.55921025,877.57,875.26,1.02238849]
[1757356986580,2.55921025,877.57,875.03,1.5317]
[1757356986581,2.55921025,877.39,875.28,1.02238849]
[1757356986880,2.55921025,877.39,875.31,1.02238849]
[1757356987081,2.55921025,877.13,875.31,1.02238849]
[1757356987278,2.55921025,877.13,875.3,1.02238849]
[1757356987478,2.55921025,877.13,875.29,1.02238849]
[1757356987682,2.55921025,877.17,875.29,1.02238849]
[1757356988080,2.55921025,877.16,875.29,1.02238849]
[1757356988782,2.55921025,877.2,875.28,1.02238849]
[1757356989284,2.55921025,877.04,875.31,1.02238849]
[1757356989586,0.62641937,877.03,875.06,1.5317]
[1757356989784,2.55921025,877.0,875.04,1.5317]
[1757356989982,0.62641937,876.99,875.04,1.5317]
[1757356990180,0.62641937,876.98,875.04,1.5317]
[1757356990481,0.62641937,876.97,875.03,1.5317]
[1757356990781,3.572581,877.36,875.03,1.5317]
[1757356990782,0.62641937,876.96,875.03,1.5317]
[1757356990981,0.62641937,876.95,875.03,1.5317]
[1757356991179,0.62641937,876.94,875.03,1.5317]
[1757356991383,0.62641937,876.93,875.02,1.5317]
[1757356991581,0.62641937,876.92,875.02,1.5317]
[1757356991781,0.62641937,876.91,875.02,1.5317]
[1757356991985,0.62641937,876.9,875.02,1.5317]
[1757356992286,0.62641937,876.89,875.02,1.5317]
[1757356992485,0.62641937,876.88,875.02,1.5317]
[1757356992782,0.62641937,876.87,875.02,1.5317]
[1757356992985,0.62641937,876.86,875.02,1.5317]
[1757356993185,0.62641937,876.85,875.02,1.5317]
[1757356993382,0.62641937,876.84,875.01,1.5317]
[1757356993586,0.62641937,876.83,875.01,1.5317]
[1757356993786,0.62641937,876.82,875.01,1.5317]
[1757356994086,0.62641937,876.81,875.01,1.5317]
[1757356994288,0.62641937,876.8,875.01,1.5317]
[1757356994585,0.62641937,876.79,875.01,1.5317]
[1757356994786,0.62641937,876.78,875.01,1.5317]
[1757356994990,1.533447,876.35,875.01,1.5317]
[1757356995186,0.62641937,876.34,875.01,1.5317]
[1757356995390,0.62641937,876.33,875.01,1.5317]
[1757356995591,0.62641937,876.32,875.01,1.5317]
[1757356995791,0.62641937,876.31,875.03,1.5317]
[1757356995988,0.62641937,876.3,875.0,1.5317]
[1757356996192,0.62641937,876.29,875.0,1.5317]
[1757356996389,0.62641937,876.28,874.99,1.5317]
[1757356996590,0.62641937,876.27,875.08,1.5317]
[1757356996792,0.62641937,876.26,875.08,1.5317]
[1757356996991,0.62641937,876.25,875.08,1.5317]
[1757356997190,0.62641937,876.24,875.08,1.5317]
[1757356997393,0.62641937,876.23,875.08,1.5317]
[1757356997594,0.62641937,876.22,875.08,1.5317]
[1757356997791,0.3552009,876.21,875.09,1.5317]
[1757356998091,2.55921025,877.25,875.09,1.5317]
[1757356998594,2.55921025,877.26,875.09,1.5317]
[1757356998895,2.55921025,877.26,875.1,1.5317]
[1757356999191,2.55921025,877.21,875.11,1.5317]
[1757356999494,2.55921025,877.21,875.13,1.5317]
[1757356999790,2.55921025,877.16,875.13,1.5317]
[1757357000295,2.55921025,877.16,875.12,1.5317]
[1757357001694,2.55921025,877.15,875.12,1.5317]
[1757357003800,2.55921025,877.17,875.11,1.5317]
[1757357004099,2.55921025,877.17,874.11,3.5739668]
[1757357004100,2.55921025,877.17,875.09,1.5317]
[1757357004295,2.55921025,877.14,875.09,1.5317]
[1757357004499,2.55921025,877.14,875.08,1.5317]
[1757357004697,2.55921025,877.14,875.09,1.5317]
[1757357005400,2.55921025,877.14,875.08,1.5317]
[1757357005795,2.55921025,876.99,875.15,1.5317]
[1757357006299,2.55921025,876.99,875.14,1.5317]
[1757357006599,2.55921025,876.99,875.17,1.5317]
[1757357006796,2.55921025,876.99,875.15,1.5317]
[1757357006996,2.55921025,877.07,875.15,1.5317]
[1757357007399,5.0943271,877.88,875.5,1.5317]
[1757357007600,2.55921025,878.51,875.56,1.5317]
[1757357007800,2.55921025,878.51,875.61,1.5317]
[1757357008100,2.55921025,878.37,875.67,1.5317]
[1757357008400,2.55921025,878.37,875.62,1.5317]
[1757357008602,2.55921025,878.37,875.79,0.19806996]
[1757357009502,2.55921025,878.41,875.79,0.19806996]
[1757357009702,0.61099602,878.4,875.79,0.19806996]
[1757357009901,0.61099602,878.39,875.79,0.19806996]
[1757357010097,0.61099602,878.38,875.79,0.19806996]
[1757357010401,0.61099602,878.37,875.79,0.19806996]
[1757357010603,0.61099602,878.36,875.79,0.19806996]
[1757357010803,0.61099602,878.35,875.79,0.19806996]
[1757357011003,0.61099602,878.34,875.79,0.19806996]
[1757357011203,0.61099602,878.33,875.79,0.19806996]
[1757357011400,0.61099602,878.32,875.79,0.19806996]
[1757357011604,0.61099602,878.31,875.79,0.19806996]
[1757357011800,0.61099602,878.3,875.79,0.19806996]
[1757357012099,0.61099602,878.29,875.79,0.19806996]
[1757357012299,0.61099602,878.28,875.79,0.19806996]
[1757357012502,0.61099602,878.27,875.79,0.19806996]
[1757357012701,0.61099602,878.26,875.79,0.19806996]
[1757357012899,0.61099602,878.25,875.79,0.19806996]
[1757357013203,2.55921025,878.09,875.79,0.19806996]
[1757357013405,0.61099602,878.08,875.79,0.19806996]
[1757357013707,0.61099602,878.07,875.79,0.19806996]
[1757357014006,0.61099602,878.06,875.79,0.19806996]
[1757357014206,0.61099602,878.05,875.79,0.19806996]
[1757357014402,0.61099602,878.04,875.79,0.19806996]
[1757357014605,0.61099602,878.03,875.79,0.19806996]
[1757357014905,0.61099602,878.02,875.79,0.19806996]
[1757357015103,0.61099602,878.01,875.79,0.19806996]
[1757357015300,1.52230817,877.51,875.79,0.19806996]
[1757357015604,0.61099602,877.5,875.79,0.19806996]
[1757357015802,0.61099602,877.49,875.79,0.19806996]
[1757357016002,0.61099602,877.48,875.79,0.19806996]
[1757357016205,0.61099602,877.47,875.79,0.19806996]
[1757357016404,0.61099602,877.46,875.79,0.19806996]
[1757357016706,1.52230817,877.39,875.79,0.19806996]
[1757357016906,0.61099602,877.38,875.79,0.19806996]
[1757357017207,0.61099602,877.37,875.79,0.19806996]
[1757357017507,0.61099602,877.36,875.79,0.19806996]
[1757357017808,0.61099602,877.35,875.79,0.19806996]
[1757357018105,0.61099602,877.34,875.79,0.19806996]
[1757357018306,0.61099602,877.33,875.79,0.19806996]
[1757357018504,0.61099602,877.32,875.79,0.19806996]
[1757357018704,0.61099602,877.31,875.79,0.19806996]
[1757357018908,0.61099602,877.3,875.79,0.19806996]
[1757357019108,0.61099602,877.29,875.79,0.19806996]
[1757357019308,0.61099602,877.28,875.79,0.19806996]
[1757357019608,0.61099602,877.27,875.79,0.19806996]
[1757357019810,0.61099602,877.26,875.79,0.19806996]
[1757357020008,0.61099602,877.25,875.79,0.19806996]
[1757357020209,0.61099602,877.24,875.79,0.19806996]
[1757357020408,0.61099602,877.23,875.79,0.19806996]
[1757357020606,0.61099602,877.22,875.79,0.19806996]
[1757357020812,0.61099602,877.21,875.79,0.19806996]
[1757357021011,0.61099602,877.2,875.79,0.19806996]
[1757357021210,0.61099602,877.19,875.79,0.19806996]
[1757357021406,0.61099602,877.18,875.79,0.19806996]
[1757357021707,0.61099602,877.17,875.79,0.19806996]
[1757357021906,0.61099602,877.16,875.79,0.19806996]
[1757357022111,0.61099602,877.15,875.79,0.19806996]
[1757357022311,0.61099602,877.14,875.79,0.19806996]
[1757357022610,0.61099602,877.13,875.79,0.19806996]
[1757357022911,0.61099602,877.12,875.79,0.19806996]
[1757357023110,0.61099602,877.11,875.79,0.19806996]
[1757357023406,0.61099602,877.1,875.79,0.19806996]
[1757357023611,0.61099602,877.09,875.79,0.19806996]
[1757357023809,1.52230817,877.38,875.79,0.19806996]
[1757357024007,0.60648793,877.37,875.79,0.19806996]
[1757357024209,0.60648793,877.36,875.79,0.19806996]
[1757357024513,0.60648793,877.35,875.79,0.19806996]
[1757357024708,0.60648793,877.34,875.79,0.19806996]
[1757357024912,0.60648793,877.33,875.79,0.19806996]
[1757357025108,0.60648793,877.32,875.79,0.19806996]
[1757357025309,0.60648793,877.31,875.79,0.19806996]
[1757357025609,0.60648793,877.3,875.79,0.19806996]
[1757357025808,0.60648793,877.29,875.79,0.19806996]
[1757357026112,0.60648793,877.28,875.79,0.19806996]
[1757357026314,0.60648793,877.27,875.79,0.19806996]
[1757357026513,0.60648793,877.26,875.79,0.19806996]
[1757357026713,0.60648793,877.25,875.79,0.19806996]
[1757357026915,0.60648793,877.24,875.79,0.19806996]
[1757357027109,0.60648793,877.23,875.79,0.19806996]
[1757357027313,3.572581,878.3,875.79,0.19806996]
[1757357027314,0.60648793,877.22,875.79,0.19806996]
[1757357027515,0.60648793,877.21,875.79,0.19806996]
[1757357027817,0.60648793,877.2,875.79,0.19806996]
[1757357028017,0.60648793,877.19,875.79,0.19806996]
[1757357028316,0.60648793,877.18,875.79,0.19806996]
[1757357028515,0.60648793,877.17,875.79,0.19806996]
[1757357028717,0.60648793,877.16,875.79,0.19806996]
[1757357029018,0.60648793,877.15,875.79,0.19806996]
[1757357029218,1.52230817,878.1,875.79,0.19806996]
[1757357029417,0.60559564,878.09,875.79,0.19806996]
[1757357029712,0.60559564,878.08,875.79,0.19806996]
[1757357029915,0.60559564,878.07,875.79,0.19806996]
[1757357030119,0.60559564,878.06,875.79,0.19806996]
[1757357030315,0.60559564,878.05,875.79,0.19806996]
[1757357030613,0.60559564,878.04,875.79,0.19806996]
[1757357030817,0.60559564,878.03,875.79,0.19806996]
[1757357031015,0.60559564,878.02,875.79,0.19806996]
[1757357031214,0.60559564,878.01,875.79,0.19806996]
[1757357031413,0.19806376,878.65,875.79,0.19806996]
[1757357031414,0.60559564,878.0,875.79,0.19806996]
[1757357031714,0.60559564,877.99,875.79,0.19806996]
[1757357032016,0.60559564,877.98,875.79,0.19806996]
[1757357032215,0.60559564,877.97,875.79,0.19806996]
[1757357032413,0.60559564,877.96,875.79,0.19806996]
[1757357032615,0.60559564,877.95,875.79,0.19806996]
[1757357032819,0.60559564,877.94,875.79,0.19806996]
[1757357033117,0.60559564,877.93,875.79,0.19806996]
[1757357033316,0.60559564,877.92,875.79,0.19806996]
[1757357033515,0.60559564,877.91,875.79,0.19806996]
[1757357033717,0.60559564,877.9,875.79,0.19806996]
[1757357033914,0.60559564,877.89,875.79,0.19806996]
[1757357034114,0.60559564,877.88,875.79,0.19806996]
[1757357034316,0.60559564,877.87,875.79,0.19806996]
[1757357034516,0.60559564,877.86,875.79,0.19806996]
[1757357034717,0.60559564,877.85,875.79,0.19806996]
[1757357034918,0.60559564,877.84,875.79,0.19806996]
[1757357035220,0.60559564,877.83,875.79,0.19806996]
[1757357035521,0.60559564,877.82,875.79,0.19806996]
[1757357035717,0.60559564,877.81,875.79,0.19806996]
[1757357035916,0.60559564,877.8,875.79,0.19806996]
[1757357036119,0.60559564,877.79,875.79,0.19806996]
[1757357036323,0.60559564,877.78,875.79,0.19806996]
[1757357036527,0.60559564,877.77,875.79,0.19806996]
[1757357036724,0.60559564,877.76,875.79,0.19806996]
[1757357036929,0.60559564,877.75,875.79,0.19806996]
[1757357037228,0.60559564,877.74,875.79,0.19806996]
[1757357037524,0.60559564,877.73,875.79,0.19806996]
[1757357037730,0.60559564,877.72,875.79,0.19806996]
[1757357038023,0.60559564,877.71,875.79,0.19806996]
[1757357038227,0.60559564,877.7,875.79,0.19806996]
[1757357038427,0.60559564,877.69,875.79,0.19806996]
[1757357038728,0.60559564,877.68,875.79,0.19806996]
[1757357039026,0.60559564,877.67,875.79,0.19806996]
[1757357039224,0.60559564,877.66,875.79,0.19806996]
[1757357039426,0.60559564,877.65,875.79,0.19806996]
[1757357039624,0.60559564,877.64,875.79,0.19806996]
[1757357039827,0.60559564,877.63,875.79,0.19806996]
[1757357040024,0.60559564,877.62,875.79,0.19806996]
[1757357040229,0.60559564,877.61,875.79,0.19806996]
[1757357040429,0.60559564,877.6,875.79,0.19806996]
[1757357040625,0.60559564,877.59,875.79,0.19806996]
[1757357040829,0.60559564,877.58,875.79,0.19806996]
[1757357041028,0.60559564,877.57,875.79,0.19806996]
[1757357041326,0.60559564,877.56,875.79,0.19806996]
[1757357041529,0.60559564,877.55,875.79,0.19806996]
[1757357041727,0.60559564,877.54,875.79,0.19806996]
[1757357041926,0.60559564,877.53,875.79,0.19806996]
[1757357042126,0.60559564,877.52,875.79,0.19806996]
[1757357042329,0.60559564,877.51,875.79,0.19806996]
[1757357042630,0.60559564,877.5,875.79,0.19806996]
[1757357042827,0.60559564,877.49,875.79,0.19806996]
[1757357043126,0.60559564,877.48,875.79,0.19806996]
[1757357043331,0.60559564,877.47,875.79,0.19806996]
[1757357043526,0.60559564,877.46,875.79,0.19806996]
[1757357043731,0.60559564,877.45,875.79,0.19806996]
[1757357044030,0.60559564,877.44,875.79,0.19806996]
[1757357044228,0.60559564,877.43,875.79,0.19806996]
[1757357044429,0.60559564,877.42,875.79,0.19806996]
[1757357044627,0.60559564,877.41,875.79,0.19806996]
[1757357044928,0.60559564,877.4,875.79,0.19806996]
[1757357045128,0.60559564,877.39,875.79,0.19806996]
[1757357045328,0.60559564,877.38,875.79,0.19806996]
[1757357045531,0.60559564,877.37,875.79,0.19806996]
[1757357045729,0.60559564,877.36,875.79,0.19806996]
[1757357046027,0.60559564,877.35,875.79,0.19806996]
[1757357046232,0.60559564,877.34,875.79,0.19806996]
[1757357046430,0.60559564,877.33,875.79,0.19806996]
[1757357046730,0.60559564,877.32,875.79,0.19806996]
[1757357047033,0.60559564,877.31,875.79,0.19806996]
[1757357047228,0.60559564,877.3,875.79,0.19806996]
[1757357047430,0.60559564,877.29,875.79,0.19806996]
[1757357047729,0.60559564,877.28,875.79,0.19806996]
[1757357047934,0.60559564,877.27,875.79,0.19806996]
[1757357048135,0.60559564,877.26,875.79,0.19806996]
[1757357048334,0.60559564,877.25,875.79,0.19806996]
[1757357048530,0.60559564,877.24,875.79,0.19806996]
[1757357048730,0.60559564,877.23,875.79,0.19806996]
[1757357048935,0.60559564,877.22,875.79,0.19806996]
[1757357049132,0.60559564,877.21,875.79,0.19806996]
[1757357049336,0.60559564,877.2,875.79,0.19806996]
[1757357049636,1.52230817,878.21,875.79,0.19806996]
[1757357049637,0.60559564,877.19,875.79,0.19806996]
[1757357049837,0.60559564,877.18,875.79,0.19806996]
[1757357050033,0.60559564,877.17,875.79,0.19806996]
[1757357050233,0.60559564,877.16,875.79,0.19806996]
[1757357050536,0.60559564,877.15,875.79,0.19806996]
[1757357050738,0.60559564,877.14,875.79,0.19806996]
[1757357050934,0.60559564,877.13,875.79,0.19806996]
[1757357051136,0.60559564,877.12,875.79,0.19806996]
[1757357051334,0.60559564,877.11,875.79,0.19806996]
[1757357051535,0.60559564,877.1,875.79,0.19806996]
[1757357051738,0.60559564,877.09,875.79,0.19806996]
[1757357052038,0.60559564,877.08,875.79,0.19806996]
[1757357052235,0.60559564,877.07,875.79,0.19806996]
[1757357052539,0.60559564,877.06,875.79,0.19806996]
[1757357052736,0.60559564,877.05,875.79,0.19806996]
[1757357053038,0.60559564,877.04,875.79,0.19806996]
[1757357053234,0.60559564,877.03,875.79,0.19806996]
[1757357053434,0.60559564,877.02,875.79,0.19806996]
[1757357053634,0.60559564,877.01,875.79,0.19806996]
[1757357053836,0.60559564,877.0,875.79,0.19806996]
[1757357054036,0.60559564,876.99,875.79,0.19806996]
[1757357054238,0.60559564,876.98,875.79,0.19806996]
[1757357054436,0.60559564,876.97,875.79,0.19806996]
[1757357054640,0.60559564,876.96,875.79,0.19806996]
[1757357054842,0.60559564,876.95,875.79,0.19806996]
[1757357055039,0.60559564,876.94,875.79,0.19806996]
[1757357055240,0.60559564,876.93,875.79,0.19806996]
[1757357055541,1.52230817,878.18,875.79,0.19806996]
[1757357055736,0.60646014,878.17,875.79,0.19806996]
[1757357055940,0.60646014,878.16,875.79,0.19806996]
[1757357056236,0.60646014,878.15,875.79,0.19806996]
[1757357056440,0.60646014,878.14,875.79,0.19806996]
[1757357056638,0.60646014,878.13,875.79,0.19806996]
[1757357056841,0.60646014,878.12,875.79,0.19806996]
[1757357057042,0.60646014,878.11,875.79,0.19806996]
[1757357057242,0.60646014,878.1,875.79,0.19806996]
[1757357057542,2.12876831,878.09,875.79,0.19806996]
[1757357057842,0.60694844,878.08,875.79,0.19806996]
[1757357058140,0.60694844,878.07,875.79,0.19806996]
[1757357058339,0.60694844,878.06,875.79,0.19806996]
[1757357058538,0.60694844,878.05,875.79,0.19806996]
[1757357058840,0.60694844,878.04,875.79,0.19806996]
[1757357059038,0.60694844,878.03,875.79,0.19806996]
[1757357059241,0.60694844,878.02,875.79,0.19806996]
[1757357059441,1.52230817,878.07,875.79,0.19806996]
[1757357059442,0.60694844,878.01,875.79,0.19806996]
[1757357059642,0.60694844,878.0,875.79,0.19806996]
[1757357059943,0.60694844,877.99,875.79,0.19806996]
[1757357060144,0.60694844,877.98,875.79,0.19806996]
[1757357060340,0.60694844,877.97,875.79,0.19806996]
[1757357060544,0.60694844,877.96,875.79,0.19806996]
[1757357060741,0.60694844,877.95,875.79,0.19806996]
[1757357060947,0.60694844,877.94,875.79,0.19806996]
[1757357061144,0.60694844,877.93,875.79,0.19806996]
[1757357061439,0.60694844,877.92,875.79,0.19806996]
[1757357061642,0.60694844,877.91,875.79,0.19806996]
[1757357061840,0.60694844,877.9,875.79,0.19806996]
[1757357062044,0.60694844,877.89,875.79,0.19806996]
[1757357062240,0.60694844,877.88,875.79,0.19806996]
[1757357062439,0.60694844,877.87,875.79,0.19806996]
[1757357062640,0.19806376,878.65,875.79,0.19806996]
[1757357062641,0.60694844,877.86,875.79,0.19806996]
[1757357062844,0.60694844,877.85,875.79,0.19806996]
[1757357063046,0.60694844,877.84,875.79,0.19806996]
[1757357063245,0.60694844,877.83,875.79,0.19806996]
[1757357063446,1.52230817,877.68,875.79,0.19806996]
[1757357063647,0.60694844,877.67,875.79,0.19806996]
[1757357063847,0.60694844,877.66,875.79,0.19806996]
[1757357064046,0.60694844,877.65,875.79,0.19806996]
[1757357064246,0.60694844,877.64,875.79,0.19806996]
[1757357064447,0.60694844,877.63,875.79,0.19806996]
[1757357064648,0.60694844,877.62,875.79,0.19806996]
[1757357064847,0.60694844,877.61,875.79,0.19806996]
[1757357065146,0.60694844,877.6,875.79,0.19806996]
[1757357065344,0.60694844,877.59,875.79,0.19806996]
[1757357065543,0.60694844,877.58,875.79,0.19806996]
[1757357065743,0.60694844,877.57,875.79,0.19806996]
[1757357065947,0.60694844,877.56,875.79,0.19806996]
[1757357066248,0.60694844,877.55,875.79,0.19806996]
[1757357066447,0.60694844,877.54,875.79,0.19806996]
[1757357066644,0.60694844,877.53,875.79,0.19806996]
[1757357066848,0.60694844,877.52,875.79,0.19806996]
[1757357067152,0.60694844,877.51,875.79,0.19806996]
[1757357067344,0.60694844,877.5,875.79,0.19806996]
[1757357067643,0.60694844,877.49,875.79,0.19806996]
[1757357067843,0.60694844,877.48,875.79,0.19806996]
[1757357068142,0.60694844,877.47,875.79,0.19806996]
[1757357068346,0.60694844,877.46,875.79,0.19806996]
[1757357068542,0.60694844,877.45,875.79,0.19806996]
[1757357068747,0.60694844,877.44,875.79,0.19806996]
[1757357068945,0.60694844,877.43,875.79,0.19806996]